bitfinex-derivatives/quotes_ETHF0:USTF0_20241026
["timestamp","ask_amount","ask_price","bid_price","bid_amount"]
[1729919484843,5.78741826,2461.7,2461.6,0.4161]
[1729919486737,1.72501826,2461.7,2461.6,0.4161]
[1729919492141,0.4454,2461.9,2461.6,0.4161]
[1729919492142,0.4067,2461.9,2461.6,1.73438826]
[1729919492339,2.18028826,2461.8,2461.6,1.73438826]
[1729919492535,1.31828826,2461.8,2461.6,1.73438826]
[1729919492740,2.18028826,2461.8,2461.6,1.73438826]
[1729919493649,1.31828826,2461.8,2461.6,1.73438826]
[1729919494146,1.31828826,2461.8,2461.6,4.94218826]
[1729919496945,1.31828826,2461.8,2461.6,5.34892826]
[1729919497448,0.862,2461.9,2461.7,1.31828826]
[1729919497646,2.18028826,2461.9,2461.7,1.31828826]
[1729919498642,2.58698826,2461.9,2461.6,4.94218826]
[1729919499147,3.6197,2462.3,2461.6,4.94218826]
[1729919499148,0.40667,2462.1,2461.8,1.31828826]
[1729919499451,1.31828826,2462.1,2461.9,4.5354]
[1729919502950,1.31828826,2462.0,2461.9,4.5354]
[1729919503945,1.31828826,2462.0,2461.9,1.3276]
[1729919504146,1.31828826,2462.0,2461.9,4.5354]
[1729919504955,1.31828826,2462.0,2461.9,1.3276]
[1729919505452,1.31828826,2462.0,2461.9,4.5354]
[1729919506346,1.31828826,2462.0,2461.9,1.3276]
[1729919506553,1.31828826,2462.0,2461.9,4.5354]
[1729919508351,1.31828826,2462.0,2461.9,1.3276]
[1729919508564,1.31828826,2462.0,2461.9,4.5354]
[1729919510451,1.31828826,2462.0,2461.9,1.3276]
[1729919510752,1.31828826,2462.0,2461.9,4.5354]
[1729919511753,1.72496826,2462.0,2461.9,4.5354]
[1729919512156,1.31828826,2462.0,2461.9,4.5354]
[1729919516855,1.72496826,2462.0,2461.9,4.5354]
[1729919517064,1.31828826,2462.0,2461.9,4.5354]
[1729919517465,1.72496826,2462.0,2461.9,4.5354]
[1729919518457,1.72496826,2462.0,2461.9,1.3276]
[1729919518774,1.31828826,2462.0,2461.9,4.5354]
[1729919519856,1.72496826,2462.0,2461.9,4.5354]
[1729919520059,1.31828826,2462.0,2461.9,4.5354]
[1729919520653,1.31828826,2462.0,2461.9,1.3276]
[1729919520859,1.31828826,2462.0,2461.9,4.5354]
[1729919521562,1.31828826,2462.0,2461.9,1.3276]
[1729919521762,1.31828826,2462.0,2461.9,4.5354]
[1729919521963,1.72496826,2462.0,2461.9,4.5354]
[1729919522163,1.31828826,2462.0,2461.9,4.5354]
[1729919523467,1.72496826,2462.0,2461.9,4.5354]
[1729919524362,1.31828826,2462.0,2461.9,4.5354]
[1729919526469,1.72496826,2462.0,2461.9,4.5354]
[1729919526764,1.31828826,2462.0,2461.9,4.5354]
[1729919527460,1.72496826,2462.0,2461.9,4.5354]
[1729919527857,1.75258826,2462.1,2461.9,4.5354]
[1729919528074,1.26865,2462.2,2461.9,4.5354]
[1729919528264,0.862,2462.2,2462.0,1.31828826]
[1729919528867,2.60712826,2462.3,2461.9,4.94208]
[1729919528868,3.2078,2462.8,2462.1,1.31828826]
[1729919529067,3.2078,2462.8,2461.9,4.5354]
[1729919529068,0.4066,2462.5,2462.4,1.31828826]
[1729919529270,1.72488826,2462.5,2462.3,0.8553]
[1729919529569,1.31828826,2462.4,2462.3,0.8553]
[1729919530768,1.72489826,2462.4,2462.3,0.8553]
[1729919531359,1.75778826,2462.4,2462.3,0.8553]
[1729919532471,0.4395,2462.4,2462.3,0.8553]
[1729919532665,1.75778826,2462.4,2462.3,0.8553]
[1729919533373,1.31828826,2462.4,2462.3,0.8553]
[1729919537965,1.72489826,2462.4,2462.3,0.8553]
[1729919538672,2.13929826,2462.4,2462.3,0.8553]
[1729919538869,1.73268826,2462.4,2462.3,0.8553]
[1729919539472,2.13929826,2462.4,2462.3,0.8553]
[1729919540674,1.73268826,2462.4,2462.3,0.8553]
[1729919541776,2.13929826,2462.4,2462.3,0.8553]
[1729919541975,1.73268826,2462.4,2462.3,0.8553]
[1729919542177,1.73268826,2462.4,2462.2,3.6236]
[1729919542377,1.73268826,2462.4,2462.2,4.0631]
[1729919542674,2.13929826,2462.4,2462.2,4.0631]
[1729919543672,2.13929826,2462.4,2462.2,0.8553]
[1729919543974,2.13929826,2462.4,2462.2,4.0631]
[1729919544373,2.13929826,2462.4,2462.2,0.8553]
[1729919544575,0.40664,2462.2,2461.9,1.06244147]
[1729919544780,1.72492826,2462.2,2461.9,1.31828826]
[1729919544981,1.72492826,2462.2,2462.0,1.31828826]
[1729919545666,1.72492826,2462.2,2462.0,4.52608826]
[1729919547072,1.31828826,2462.2,2462.0,4.52608826]
[1729919547280,1.72492826,2462.3,2462.0,4.52608826]
[1729919547473,1.31828826,2462.3,2462.0,4.52608826]
[1729919547682,1.26865,2462.2,2462.0,4.52608826]
[1729919548380,1.26865,2462.2,2462.0,1.31828826]
[1729919548567,1.26865,2462.2,2462.0,4.52608826]
[1729919549170,0.862,2462.2,2462.0,4.52608826]
[1729919549973,0.862,2462.2,2462.0,1.31828826]
[1729919550179,0.862,2462.2,2462.0,4.52608826]
[1729919550770,1.26865,2462.2,2462.0,4.52608826]
[1729919550970,1.31828826,2462.1,2462.0,3.2078]
[1729919552990,1.31828826,2462.1,2461.9,1.73048826]
[1729919553293,2.18028826,2462.2,2462.0,4.52608826]
[1729919554583,2.58693826,2462.2,2462.0,4.52608826]
[1729919554884,0.862,2462.4,2462.1,1.72494826]
[1729919555090,0.862,2462.4,2462.2,1.2731]
[1729919555387,0.862,2462.3,2462.2,1.2731]
[1729919557289,3.2078,2462.6,2462.2,2.59138826]
[1729919557490,5.38808826,2462.6,2462.3,1.31828826]
[1729919557992,2.18028826,2462.6,2462.3,1.31828826]
[1729919558197,2.18028826,2462.6,2462.3,1.72491826]
[1729919559391,0.862,2462.6,2462.5,1.31828826]
[1729919561490,3.6187,2462.9,2462.5,1.31828826]
[1729919561694,1.72858826,2463.1,2462.8,1.31828826]
[1729919561995,2.13509826,2463.1,2462.9,0.4185]
[1729919562393,1.31828826,2463.0,2462.9,0.4185]
[1729919563090,1.72479826,2463.0,2462.9,0.4185]
[1729919563488,0.40653,2462.9,2462.7,1.74938826]
[1729919563788,1.72481826,2462.9,2462.7,1.74938826]
[1729919564191,1.31828826,2462.9,2462.7,1.74938826]
[1729919564393,1.2937,2463.0,2462.7,1.74938826]
[1729919564394,0.862,2463.0,2462.8,1.31828826]
[1729919564591,0.862,2463.0,2462.9,1.31828826]
[1729919565792,2.58677826,2463.2,2462.9,1.31828826]
[1729919565997,2.58677826,2463.2,2463.0,0.8615]
[1729919566292,0.862,2463.2,2463.1,1.31828826]
[1729919568201,0.861,2463.5,2463.1,1.31828826]
[1729919568390,2.58572826,2463.5,2463.3,1.31828826]
[1729919568894,2.58572826,2463.5,2463.4,0.4172]
[1729919569697,2.58572826,2463.5,2463.4,0.8648]
[1729919570801,1.72472826,2463.5,2463.4,0.8648]
[1729919571093,0.40643,2463.5,2463.4,2.18308826]
[1729919571293,1.72471826,2463.5,2463.4,0.8648]
[1729919571500,1.31828826,2463.5,2463.4,2.18308826]
[1729919571694,3.44931826,2463.6,2463.4,2.18308826]
[1729919571894,0.40643,2463.5,2463.4,2.18308826]
[1729919572101,3.44930826,2463.6,2463.4,2.18308826]
[1729919572398,2.18188826,2463.6,2463.4,2.18308826]
[1729919572599,0.40643,2463.5,2463.4,2.18308826]
[1729919572801,1.72471826,2463.5,2463.4,2.18308826]
[1729919573100,1.31828826,2463.5,2463.4,2.18308826]
[1729919573396,2.58830826,2463.6,2463.4,2.18308826]
[1729919573795,1.72470826,2463.6,2463.5,1.31828826]
[1729919574398,1.31828826,2463.6,2463.5,1.31828826]
[1729919574698,1.72469826,2463.6,2463.5,1.31828826]
[1729919575695,0.40641,2463.6,2463.5,1.75438826]
[1729919576199,2.58568826,2463.7,2463.5,1.75438826]
[1729919577196,0.40641,2463.6,2463.5,1.75438826]
[1729919578399,0.40643,2463.5,2463.4,2.18308826]
[1729919578600,1.72471826,2463.5,2463.4,2.18308826]
[1729919578801,2.15041826,2463.5,2463.4,2.18308826]
[1729919580909,0.83213,2463.5,2463.4,2.18308826]
[1729919583308,2.16790826,2463.6,2463.4,2.18308826]
[1729919583506,0.40642,2463.6,2463.5,1.31828826]
[1729919583899,0.40642,2463.6,2463.5,1.75368826]
[1729919584604,3.02788826,2463.7,2463.5,1.75368826]
[1729919585607,3.02788826,2463.7,2463.5,1.31828826]
[1729919585608,0.40641,2463.6,2463.5,1.31828826]
[1729919585903,0.40643,2463.5,2463.4,1.31828826]
[1729919586101,0.40642,2463.6,2463.4,1.31828826]
[1729919586301,0.40642,2463.6,2463.5,1.31828826]
[1729919587406,0.40641,2463.6,2463.5,1.31828826]
[1729919588302,2.62148826,2463.7,2463.5,1.31828826]
[1729919588501,0.40641,2463.6,2463.5,1.31828826]
[1729919589501,1.72467826,2463.8,2463.5,1.31828826]
[1729919589707,1.72467826,2463.8,2463.7,1.31828826]
[1729919589708,1.26739,2463.8,2463.7,1.31828826]
[1729919590208,1.26739,2463.8,2463.7,1.75798826]
[1729919590605,1.26739,2463.8,2463.7,0.4397]
[1729919593013,1.26739,2463.8,2463.7,1.75798826]
[1729919596515,1.26739,2463.8,2463.7,2.18768826]
[1729919596814,4.0688,2463.9,2463.7,2.18768826]
[1729919597014,4.47517,2463.9,2463.7,2.18768826]
[1729919597313,0.40638,2463.8,2463.7,2.18768826]
[1729919598113,4.47517,2463.9,2463.7,2.18768826]
[1729919598419,0.861,2463.9,2463.7,2.18768826]
[1729919598720,0.40638,2463.8,2463.7,2.18768826]
[1729919604913,0.4064,2463.7,2463.6,1.74878826]
[1729919607119,4.0688,2463.9,2463.6,1.74878826]
[1729919607314,4.47517,2463.9,2463.8,1.31828826]
[1729919608616,1.26737,2463.9,2463.8,1.31828826]
[1729919609116,1.26736,2463.9,2463.8,1.31828826]
[1729919609318,1.26736,2463.9,2463.8,1.74768826]
[1729919620534,0.40638,2463.8,2463.7,0.4312]
[1729919621126,0.40638,2463.8,2463.7,1.74948826]
[1729919621331,1.72466826,2463.8,2463.7,0.4312]
[1729919621531,0.40638,2463.8,2463.7,0.4312]
[1729919622531,0.40638,2463.8,2463.7,1.74948826]
[1729919623932,1.26737,2463.9,2463.7,1.74948826]
[1729919624133,1.26737,2463.9,2463.8,1.31828826]
[1729919627437,0.861,2463.9,2463.8,1.31828826]
[1729919628632,0.40634,2464.1,2463.8,1.31828826]
[1729919628842,1.26734,2464.1,2464.0,1.31828826]
[1729919629138,3.2078,2464.2,2464.0,1.31828826]
[1729919629441,3.2078,2464.2,2464.1,1.31828826]
[1729919630936,3.61411,2464.2,2464.1,1.31828826]
[1729919631138,0.40631,2464.2,2464.1,1.31828826]
[1729919631341,0.4063,2464.3,2464.1,1.31828826]
[1729919631551,0.4063,2464.3,2464.2,1.31828826]
[1729919632444,0.86,2464.4,2464.2,1.31828826]
[1729919632644,0.86,2464.4,2464.3,1.75658826]
[1729919632645,1.26629,2464.4,2464.3,1.75658826]
[1729919634637,3.2078,2464.6,2464.3,1.75658826]
[1729919634839,0.40625,2464.6,2464.5,1.31828826]
[1729919642641,0.40626,2464.5,2464.4,0.8249]
[1729919642842,0.40626,2464.5,2464.4,2.14318826]
[1729919643950,0.40626,2464.5,2464.4,0.8249]
[1729919644145,0.40626,2464.5,2464.4,2.14318826]
[1729919644749,1.75508826,2464.6,2464.3,4.52608826]
[1729919645052,0.40633,2464.1,2464.0,0.8743]
[1729919645252,1.75508826,2464.6,2464.0,0.8743]
[1729919645548,0.40633,2464.1,2464.0,0.8743]
[1729919646649,0.40633,2464.1,2464.0,2.19258826]
[1729919648944,0.86,2464.2,2464.0,2.19258826]
[1729919649152,0.86,2464.2,2464.1,1.31828826]
[1729919651053,2.16408826,2464.7,2464.1,8.58448826]
[1729919651054,0.40629,2464.4,2464.1,8.58448826]
[1729919651246,0.40629,2464.4,2464.3,1.31828826]
[1729919651763,0.40629,2464.4,2464.3,5.37588826]
[1729919652452,0.40626,2464.6,2464.3,5.37588826]
[1729919652752,0.40626,2464.6,2464.1,3.61412]
[1729919652753,0.40626,2464.6,2464.5,1.31828826]
[1729919660161,0.4063,2464.3,2464.2,3.2078]
[1729919660462,0.4063,2464.3,2464.2,4.52608826]
[1729919660858,0.4063,2464.3,2464.2,4.94048826]
[1729919663153,0.4063,2464.3,2464.2,0.4144]
[1729919663154,4.4647,2464.3,2464.2,0.4144]
[1729919663554,4.8854,2464.3,2464.2,0.4144]
[1729919663855,5.3266,2464.3,2464.2,0.4144]
[1729919664661,0.40637,2463.9,2463.6,3.2078]
[1729919664961,6.23858826,2464.3,2463.8,1.31828826]
[1729919664962,1.31828826,2464.1,2463.8,1.31828826]
[1729919665263,0.40636,2463.9,2463.8,1.31828826]
[1729919668359,0.40637,2463.9,2463.8,1.31828826]
[1729919671867,0.40638,2463.8,2463.7,0.425]
[1729919672165,1.27438,2463.8,2463.7,0.425]
[1729919672466,1.27438,2463.8,2463.7,1.74328826]
[1729919674966,5.33358,2463.8,2463.7,1.74328826]
[1729919675158,1.27438,2463.8,2463.7,1.74328826]
[1729919675664,1.27438,2463.8,2463.7,0.425]
[1729919676362,6.65186826,2463.8,2463.7,0.425]
[1729919677268,2.59266826,2463.8,2463.7,0.425]
[1729919679263,1.72466826,2463.8,2463.7,0.425]
[1729919681672,2.14066826,2463.8,2463.7,0.425]
[1729919682273,3.00066826,2463.8,2463.7,0.425]
[1729919683979,2.58466826,2463.8,2463.7,0.425]
[1729919686291,2.58466826,2463.8,2463.4,0.8574]
[1729919686489,2.17828826,2463.8,2463.6,0.4168]
[1729919686691,2.58467826,2463.8,2463.6,0.4168]
[1729919688188,0.4064,2463.7,2463.6,0.4168]
[1729919688395,0.8251,2463.7,2463.6,0.4168]
[1729919688582,0.8251,2463.7,2463.4,2.17568826]
[1729919688583,1.73698826,2463.7,2463.4,2.17568826]
[1729919688790,0.40643,2463.5,2463.4,1.2815]
[1729919689087,1.31828826,2463.6,2463.4,1.2815]
[1729919689485,0.40643,2463.5,2463.4,1.2815]
[1729919690684,1.31828826,2463.6,2463.4,1.2815]
[1729919690879,1.72470826,2463.6,2463.4,1.2815]
[1729919691084,1.72470826,2463.6,2463.4,2.59978826]
[1729919691793,0.40642,2463.6,2463.4,2.59978826]
[1729919693488,2.15128826,2463.7,2463.4,2.59978826]
[1729919693691,4.52608826,2463.5,2462.9,3.2078]
[1729919693890,1.31828826,2463.2,2463.0,1.31828826]
[1729919694097,0.40649,2463.1,2463.0,1.31828826]
[1729919695593,1.72477826,2463.2,2463.0,1.31828826]
[1729919695794,1.31828826,2463.2,2463.0,1.31828826]
[1729919695989,0.40649,2463.1,2463.0,1.31828826]
[1729919696392,0.40651,2463.0,2462.9,0.4306]
[1729919696592,1.72479826,2463.0,2462.9,0.4306]
[1729919705199,1.31828826,2463.2,2462.9,1.74888826]
[1729919705398,1.26649,2463.2,2463.0,1.31828826]
[1729919705587,0.40649,2463.1,2463.0,1.31828826]
[1729919706292,1.72477826,2463.1,2462.9,0.4306]
[1729919706496,1.72477826,2463.1,2462.9,1.74888826]
[1729919706796,0.40649,2463.1,2462.9,1.74888826]
[1729919706996,1.26649,2463.1,2462.9,1.74888826]
[1729919707391,0.40651,2463.0,2462.9,0.4306]
[1729919707595,1.72479826,2463.0,2462.9,0.4306]
[1729919707793,5.37828826,2463.0,2462.4,3.2078]
[1729919707987,5.37828826,2463.0,2461.9,1.59366221]
[1729919707988,0.40658,2462.6,2462.5,1.2825]
[1729919708186,1.26658,2462.6,2462.5,0.8482]
[1729919709293,2.58486826,2462.6,2462.5,0.8482]
[1729919709997,0.86,2462.6,2462.5,2.16648826]
[1729919711793,1.31828826,2462.8,2462.5,6.22728826]
[1729919711988,0.86,2462.7,2462.6,1.31828826]
[1729919712202,0.86,2462.7,2462.5,2.16648826]
[1729919714708,1.26657,2462.7,2462.5,2.16648826]
[1729919716397,0.86,2462.7,2462.5,2.16648826]
[1729919716905,1.26657,2462.7,2462.5,2.16648826]
[1729919717409,0.86,2462.7,2462.5,2.16648826]
[1729919718707,1.26657,2462.7,2462.5,2.16648826]
[1729919718998,0.86,2462.7,2462.5,2.16648826]
[1729919719195,1.26657,2462.7,2462.5,2.16648826]
[1729919720397,0.86,2462.7,2462.5,2.16648826]
[1729919720803,1.26657,2462.7,2462.5,2.16648826]
[1729919721302,0.40658,2462.6,2462.5,2.16648826]
[1729919721805,1.26657,2462.7,2462.5,6.22728826]
[1729919722001,1.26657,2462.7,2462.5,2.16648826]
[1729919722502,1.31828826,2462.6,2462.5,0.8482]
[1729919722910,1.31828826,2462.6,2462.5,4.909]
[1729919723106,1.31828826,2462.6,2462.5,6.22728826]
[1729919723405,2.17828826,2462.7,2462.5,6.22728826]
[1729919723596,2.17828826,2462.7,2462.5,2.16648826]
[1729919724504,2.58484826,2462.7,2462.5,2.16648826]
[1729919725105,2.17828826,2462.7,2462.5,2.16648826]
[1729919726298,3.6143,2463.1,2462.7,0.40655]
[1729919726603,0.40651,2463.0,2462.8,1.31828826]
[1729919726797,4.52608826,2463.1,2462.9,0.8831]
[1729919727009,4.93258826,2463.1,2462.9,1.3155]
[1729919728396,1.72478826,2463.1,2462.9,1.3155]
[1729919729224,0.40651,2463.0,2462.9,1.3155]
[1729919729403,1.72478826,2463.1,2462.9,2.63378826]
[1729919730110,1.31828826,2463.1,2462.9,2.63378826]
[1729919730407,1.72478826,2463.1,2462.9,2.63378826]
[1729919731210,1.72478826,2463.1,2463.0,1.31828826]
[1729919736210,1.31828826,2463.1,2463.0,1.31828826]
[1729919737021,5.79257826,2463.2,2463.0,1.31828826]
[1729919737224,2.58477826,2463.2,2463.0,1.31828826]
[1729919737515,0.86,2463.2,2463.0,1.31828826]
[1729919737720,0.8487,2463.6,2463.1,1.72477826]
[1729919737918,0.82002,2463.6,2463.4,1.31828826]
[1729919738127,2.13830826,2463.6,2463.5,0.4337]
[1729919738616,3.2078,2463.8,2463.5,6.21760826]
[1729919738814,3.2078,2463.8,2463.6,1.31828826]
[1729919738815,3.61418,2463.8,2463.6,1.31828826]
[1729919739010,3.2078,2463.8,2463.7,2.18108826]
[1729919739316,1.2993,2464.1,2463.7,2.58747826]
[1729919739317,1.70563,2464.1,2463.7,2.58747826]
[1729919739516,3.02391826,2464.1,2463.9,1.31828826]
[1729919739718,2.61758826,2464.1,2463.9,1.31828826]
[1729919740015,0.86,2464.1,2464.0,1.31828826]
[1729919740714,0.86,2464.1,2464.0,5.37668826]
[1729919741015,1.31828826,2464.4,2464.0,5.78302826]
[1729919741221,1.31828826,2464.4,2464.2,1.31828826]
[1729919741520,2.60548826,2464.5,2464.3,1.31828826]
[1729919742614,1.31828826,2464.4,2464.2,4.52608826]
[1729919743021,0.31902259,2465.0,2464.3,5.78217826]
[1729919743022,1.26622,2464.8,2464.3,5.78217826]
[1729919743221,2.58450826,2464.8,2464.6,1.31828826]
[1729919743416,3.2078,2465.0,2464.7,1.31828826]
[1729919743618,1.72449826,2464.9,2464.7,1.31828826]
[1729919743817,1.31828826,2464.8,2464.6,1.31828826]
[1729919744216,1.72449826,2464.8,2464.6,1.31828826]
[1729919744414,1.72451826,2464.7,2464.6,1.31828826]
[1729919744610,1.31828826,2464.7,2464.6,1.31828826]
[1729919744916,1.31828826,2464.8,2464.6,1.31828826]
[1729919745117,1.31828826,2464.8,2464.6,1.73078826]
[1729919745523,2.60238826,2465.0,2464.7,1.31828826]
[1729919745820,2.17828826,2465.2,2464.9,1.31828826]
[1729919746025,2.58444826,2465.2,2464.9,1.31828826]
[1729919746223,0.40617,2465.1,2464.9,1.31828826]
[1729919746423,1.72445826,2465.1,2464.9,1.31828826]
[1729919746635,1.31828826,2465.1,2464.9,1.31828826]
[1729919746826,1.72445826,2465.1,2465.0,1.31828826]
[1729919748421,0.40616,2465.2,2464.8,3.2078]
[1729919748922,0.40616,2465.2,2464.9,0.4287]
[1729919749424,1.2832,2465.3,2464.9,0.4287]
[1729919749628,0.40618,2465.1,2464.9,0.4287]
[1729919751527,0.40618,2465.0,2464.8,3.2078]
[1729919751720,0.40617,2465.1,2464.8,3.2078]
[1729919752027,7.3443925,2465.3,2464.8,3.2078]
[1729919752028,0.40619,2465.0,2464.8,3.2078]
[1729919752723,0.859,2465.2,2464.8,3.2078]
[1729919752724,0.40617,2465.1,2464.8,3.2078]
[1729919753526,6.4853925,2465.3,2464.8,3.2078]
[1729919753722,4.491,2465.3,2464.8,3.2078]
[1729919753917,4.89714,2465.3,2464.8,3.61401]
[1729919754425,0.40616,2465.2,2464.8,3.2078]
[1729919754834,0.40617,2465.1,2464.8,3.2078]
[1729919755330,1.2832,2465.3,2464.8,3.2078]
[1729919755527,0.40616,2465.2,2464.8,3.2078]
[1729919756233,0.40616,2465.2,2464.7,0.84163]
[1729919757732,0.40617,2465.1,2464.7,0.4354]
[1729919758726,0.40617,2465.1,2464.7,0.84163]
[1729919759431,0.40617,2465.1,2464.7,0.4354]
[1729919761333,0.40617,2465.1,2464.8,3.2078]
[1729919761934,1.2832,2465.3,2464.8,3.2078]
[1729919762231,0.40616,2465.2,2464.8,3.2078]
[1729919762433,1.2832,2465.3,2464.8,3.2078]
[1729919762636,0.40615,2465.2,2464.8,3.2078]
[1729919763126,0.40617,2465.1,2464.8,3.2078]
[1729919764037,0.40617,2465.1,2464.7,0.84163]
[1729919764533,0.40617,2465.1,2464.7,0.4354]
[1729919765125,0.40619,2465.0,2464.8,3.2078]
[1729919765331,0.40619,2465.0,2464.7,0.4354]
[1729919765732,4.1365925,2465.3,2464.7,0.4354]
[1729919765733,0.40621,2464.9,2464.7,0.4354]
[1729919767336,4.1365925,2465.3,2464.7,0.4354]
[1729919767337,3.2078,2465.2,2464.7,0.4354]
[1729919767535,0.40623,2464.7,2464.6,0.8636]
[1729919768435,0.40622,2464.8,2464.6,0.8636]
[1729919768628,0.40622,2464.8,2464.7,0.4508]
[1729919769435,0.4501,2464.9,2464.7,0.4508]
[1729919769642,0.4294,2465.0,2464.7,0.4508]
[1729919769831,0.8356,2465.0,2464.7,0.4508]
[1729919770036,0.40617,2465.1,2464.7,0.4508]
[1729919770348,2.58221197,2465.3,2465.0,1.31708197]
[1729919770549,2.58221197,2465.3,2465.1,0.8434]
[1729919771044,1.31708197,2465.2,2465.1,0.8434]
[1729919771239,0.40618,2465.0,2464.9,3.2078]
[1729919771430,1.72326197,2465.0,2464.9,3.2078]
[1729919772044,1.72326197,2465.0,2464.8,0.41]
[1729919773745,1.72326197,2465.0,2464.8,1.72708197]
[1729919773936,0.40618,2465.0,2464.8,2.14818197]
[1729919774238,1.72325197,2465.1,2464.8,2.14818197]
[1729919776234,1.72326197,2465.0,2464.8,0.8311]
[1729919776542,0.40618,2465.0,2464.9,1.31708197]
[1729919777438,2.58225197,2465.1,2464.9,1.31708197]
[1729919777943,2.60248197,2465.2,2465.0,0.4215]
[1729919778243,1.72325197,2465.1,2465.0,0.4215]
[1729919780847,0.4062,2464.9,2464.8,4.4607]
[1729919781047,1.72328197,2464.9,2464.8,4.4607]
[1729919782750,0.4062,2464.9,2464.8,5.77778197]
[1729919783651,0.40619,2465.0,2464.8,5.77778197]
[1729919783952,0.40619,2465.0,2464.9,1.31708197]
[1729919784348,3.00864197,2465.2,2464.9,1.31708197]
[1729919784550,2.60248197,2465.2,2464.9,1.31708197]
[1729919784749,0.40618,2465.1,2464.9,1.31708197]
[1729919785150,3.00864197,2465.2,2464.9,1.31708197]
[1729919785948,3.00864197,2465.2,2465.0,1.31708197]
[1729919785949,1.2854,2465.2,2465.0,1.31708197]
[1729919786452,1.69155,2465.2,2465.1,0.4236]
[1729919788455,3.00863197,2465.2,2465.1,0.4236]
[1729919789748,1.2854,2465.2,2465.1,0.4236]
[1729919789950,1.26515,2465.2,2465.1,0.4236]
[1729919790757,0.859,2465.2,2465.1,0.4236]
[1729919791547,1.26515,2465.2,2465.1,0.4236]
[1729919792159,2.58223197,2465.2,2465.1,0.4236]
[1729919793560,10.75776394,2465.2,2464.7,1.06244147]
[1729919793852,0.40623,2464.7,2464.6,0.4319]
[1729919794251,1.25713,2464.7,2464.6,0.4319]
[1729919795057,2.57421197,2464.7,2464.6,0.4319]
[1729919798461,2.57421197,2464.7,2464.6,1.74898197]
[1729919799259,2.57421197,2464.7,2464.6,0.4319]
[1729919799458,2.57421197,2464.7,2464.6,1.74898197]
[1729919801157,0.8509,2464.7,2464.6,1.74898197]
[1729919801357,3.2078,2465.0,2464.7,0.40623]
[1729919801562,3.2078,2465.0,2464.9,1.31708197]
[1729919801763,0.859,2465.1,2464.9,4.93108197]
[1729919802068,0.859,2465.1,2465.0,1.31708197]
[1729919802263,0.859,2465.1,2465.0,1.75448197]
[1729919803460,1.26517,2465.1,2465.0,1.75448197]
[1729919803660,0.859,2465.1,2465.0,1.75448197]
[1729919804267,1.26517,2465.1,2465.0,1.75448197]
[1729919805363,0.859,2465.1,2465.0,1.75448197]
[1729919806364,1.72323197,2465.3,2465.0,1.75448197]
[1729919806558,0.859,2465.2,2465.1,1.31708197]
[1729919807157,1.26515,2465.2,2465.1,1.31708197]
[1729919807767,0.859,2465.2,2465.1,1.31708197]
[1729919807970,1.26515,2465.2,2465.1,1.31708197]
[1729919809060,0.859,2465.2,2465.1,1.31708197]
[1729919810371,1.26515,2465.2,2465.1,1.31708197]
[1729919811267,1.26515,2465.2,2465.0,1.75448197]
[1729919812469,2.58223197,2465.2,2465.0,1.75448197]
[1729919812668,0.40617,2465.1,2465.0,1.75448197]
[1729919813474,2.58224197,2465.2,2465.0,1.75448197]
[1729919814276,0.40617,2465.1,2465.0,1.75448197]
[1729919814575,2.17608197,2465.2,2465.0,1.75448197]
[1729919814776,2.58224197,2465.2,2465.0,1.75448197]
[1729919815669,2.17608197,2465.2,2465.0,1.75448197]
[1729919815871,0.40617,2465.1,2465.0,1.75448197]
[1729919816073,2.58224197,2465.2,2465.0,1.75448197]
[1729919818272,1.31708197,2465.3,2465.1,1.31708197]
[1729919818477,1.26414,2465.3,2465.2,0.4327]
[1729919818678,1.26414,2465.3,2465.2,0.8824]
[1729919818873,2.58122197,2465.3,2465.2,0.8824]
[1729919819673,0.40616,2465.2,2465.0,1.75448197]
[1729919819879,1.72324197,2465.2,2465.0,2.20418197]
[1729919820483,0.40617,2465.1,2465.0,2.20418197]
[1729919820981,1.72324197,2465.2,2465.0,0.8871]
[1729919821779,1.31708197,2465.2,2465.0,0.8871]
[1729919821985,0.858,2465.4,2465.1,1.72324197]
[1729919822280,0.858,2465.5,2465.3,1.31708197]
[1729919822482,2.15998197,2465.7,2465.4,2.57679197]
[1729919822675,1.31708197,2465.9,2465.6,1.31708197]
[1729919822889,1.31708197,2465.9,2465.7,2.16708197]
[1729919822890,2.17508197,2465.9,2465.7,2.16708197]
[1729919823082,2.17508197,2465.9,2465.8,0.4129]
[1729919823882,2.58111197,2465.9,2465.8,0.4129]
[1729919824482,0.40605,2465.8,2465.4,1.31708197]
[1729919824684,1.31708197,2465.6,2465.5,0.4387]
[1729919825783,1.74498197,2465.7,2465.5,1.75578197]
[1729919826281,2.15106197,2465.7,2465.5,1.75578197]
[1729919826484,1.74498197,2465.7,2465.5,1.75578197]
[1729919826784,2.15105197,2465.7,2465.5,1.75578197]
[1729919828487,1.74498197,2465.7,2465.5,1.75578197]
[1729919828686,0.40608,2465.6,2465.5,1.75578197]
[1729919828885,2.15105197,2465.7,2465.5,1.75578197]
[1729919829584,1.74498197,2465.7,2465.5,1.75578197]
[1729919831191,1.31708197,2465.7,2465.5,1.75578197]
[1729919834178,1.72315197,2465.7,2465.5,1.75578197]
[1729919834384,1.31708197,2465.7,2465.5,1.75578197]
[1729919835287,1.72315197,2465.7,2465.5,1.75578197]
[1729919835587,1.72315197,2465.7,2465.0,3.2078]
[1729919835588,1.31708197,2465.6,2465.0,3.2078]
[1729919835786,1.31708197,2465.3,2465.1,2.60128197]
[1729919835991,1.31708197,2465.3,2465.2,1.31708197]
[1729919836186,2.17508197,2465.4,2465.2,1.31708197]
[1729919836690,2.58121197,2465.4,2465.2,1.31708197]
[1729919836891,3.02681197,2465.4,2465.2,1.31708197]
[1729919837984,0.40613,2465.3,2465.2,1.31708197]
[1729919838390,2.62068197,2465.4,2465.2,1.31708197]
[1729919838584,3.02680197,2465.4,2465.2,1.31708197]
[1729919839487,0.40613,2465.3,2465.2,1.31708197]
[1729919839793,0.82313,2465.3,2465.2,1.31708197]
[1729919840191,5.79008197,2465.3,2464.6,3.2078]
[1729919840391,1.72327197,2465.0,2464.8,1.31708197]
[1729919840592,0.40618,2465.0,2464.9,1.31708197]
[1729919841488,0.82318,2465.0,2464.9,1.31708197]
[1729919841689,1.24178,2465.0,2464.9,1.31708197]
[1729919842486,5.35424197,2465.2,2464.9,1.31708197]